lending/lending_fUSD_20260310
["ID","MTS","AMOUNT","RATE_DAILY","PERIOD"]
[408140292,1773168638226,-151.0,0.00018418,2]
[408140294,1773168638236,-500.0,0.00018418,2]
[408140296,1773168638245,-151.0,0.00018418,2]
[408140298,1773168638255,-500.0,0.00018418,2]
[408140300,1773168638264,-151.0,0.00018418,2]
[408140302,1773168638274,-500.0,0.00018418,2]
[408140304,1773168638283,-151.0,0.00018418,2]
[408140306,1773168638292,-500.0,0.00018418,2]
[408140308,1773168638302,-151.0,0.00018418,2]
[408140310,1773168638311,-500.0,0.00018418,2]
[408140312,1773168638320,-500.0,0.00018418,2]
[408140314,1773168638329,-500.0,0.00018418,2]
[408140316,1773168638338,-500.0,0.00018418,2]
[408140318,1773168638348,-500.0,0.00018418,2]
[408140320,1773168638358,-151.0,0.00018418,2]
[408140322,1773168638367,-500.0,0.00018418,2]
[408140324,1773168638376,-500.0,0.00018418,2]
[408140326,1773168638385,-500.0,0.00018418,2]
[408140328,1773168638395,-151.50524412,0.00018418,2]
[408140330,1773168638404,-151.0,0.00018418,2]
[408140332,1773168638414,-200.0,0.0001844,2]
[408140334,1773168638424,-510.0,0.00018465,3]
[408140336,1773168638433,-500.0,0.00018473,2]
[408140338,1773168638443,-500.0,0.00018473,2]
[408140340,1773168638452,-16529.39602955,0.00018479,2]
[408140342,1773168638463,-500.0,0.00018528,2]
[408140344,1773168638472,-552.49408871,0.00018528,2]
[408140346,1773168638481,-500.0,0.00018548,2]
[408140348,1773168638490,-150.0,0.00018548,2]
[408140350,1773168638500,-500.0,0.00018548,2]
[408140352,1773168638509,-500.0,0.00018548,2]
[408140354,1773168638518,-500.0,0.00018548,2]
[408140356,1773168638528,-150.0,0.00018548,2]
[408140358,1773168638537,-150.0,0.00018548,2]
[408140360,1773168638546,-500.0,0.00018548,2]
[408140362,1773168638555,-500.0,0.00018548,2]
[408140364,1773168638564,-200.76649827,0.00018548,2]
[408140366,1773168638573,-5051.15308939,0.00018558,2]
[408140368,1773168638583,-500.0,0.00018583,2]
[408140370,1773168638592,-1000.0,0.000186,6]
[408140372,1773168638602,-500.0,0.00018603,2]
[408140374,1773168638611,-150.0,0.00018603,2]
[408140376,1773168638620,-500.0,0.00018603,2]
[408140378,1773168638629,-500.0,0.00018603,2]
[408140380,1773168638639,-500.0,0.00018603,2]
[408140382,1773168638648,-150.0,0.00018603,2]
[408140384,1773168638657,-150.0,0.00018603,2]
[408140386,1773168638666,-600.0,0.00018603,2]
[408140388,1773168638677,-500.0,0.00018603,2]
[408140390,1773168638686,-500.0,0.00018637,2]
[408140392,1773168638696,-200.0,0.00018647,2]
[408140394,1773168638705,-500.0,0.00018658,2]
[408140396,1773168638714,-200.0,0.00018658,2]
[408140398,1773168638724,-500.0,0.00018658,2]
[408140400,1773168638733,-500.0,0.00018658,2]
[408140402,1773168638743,-500.0,0.00018658,2]
[408140404,1773168638752,-150.0,0.00018658,2]
[408140405,1773168638761,-150.0,0.00018658,2]
[408140407,1773168638770,-500.0,0.00018658,2]
[408140409,1773168638780,-500.0,0.00018692,2]
[408140411,1773168638789,-2000.0,0.000187,6]
[408140413,1773168638799,-500.0,0.00018712,2]
[408140415,1773168638809,-204.83861542,0.00018712,2]
[408140417,1773168638818,-500.0,0.00018712,2]
[408140419,1773168638827,-500.0,0.00018712,2]
[408140421,1773168638837,-150.0,0.00018712,2]
[408140423,1773168638846,-150.0,0.00018712,2]
[408140425,1773168638855,-500.0,0.00018712,2]
[408140427,1773168638865,-551.92,0.00018716,2]
[408140429,1773168638874,-781.59,0.00018718,2]
[408140431,1773168638885,-2500.0,0.00018722,2]
[408140433,1773168638895,-381.58,0.00018737,2]
[408140435,1773168638905,-500.0,0.00018747,2]
[408140437,1773168638915,-220.89067282,0.00018747,2]
[408140439,1773168638924,-153.75048617,0.00018747,2]
[408140441,1773168638934,-5051.15308938,0.0001875,2]
[408140443,1773168638943,-16529.39602955,0.00018763,2]
[408140445,1773168638954,-2351.0,0.00018765,2]
[408140447,1773168638963,-500.0,0.00018767,2]
[408140449,1773168638973,-250.0,0.00018767,2]
[408140451,1773168638983,-500.0,0.00018767,2]
[408140453,1773168638992,-150.0,0.00018767,2]
[408140455,1773168639001,-150.0,0.00018767,2]
[408140457,1773168639011,-508.22060755,0.00018767,2]
[408140459,1773168639020,-3000.0,0.000188,6]
[408140461,1773168639029,-500.0,0.00018802,2]
[408140463,1773168639038,-2288.15,0.00018812,2]
[408140465,1773168639048,-516.10103319,0.00018822,2]
[408140467,1773168639059,-526.0,0.00018822,2]
[408140469,1773168639069,-250.0,0.00018822,2]
[408140471,1773168639079,-250.0,0.00018822,2]
[408140473,1773168639088,-4117.32472029,0.00018822,2]
[408140475,1773168639098,-244.94415922,0.00018822,2]
[408140477,1773168639107,-161.23904761,0.00018822,2]
[408140479,1773168639117,-3957.85580899,0.00018822,2]
[408140481,1773168639126,-368.85300107,0.00018822,2]
[408140483,1773168639139,-346.46936844,0.00018857,2]
[408140485,1773168639149,-4000.0,0.000189,6]
[408140487,1773168639158,-549.68387848,0.00018912,2]
[408140488,1773168639167,-399.24757169,0.00018912,2]
[408140490,1773168639177,-500.0,0.00018921,2]
[408140492,1773168639187,-500.0,0.00018921,2]
[408140494,1773168639196,-500.0,0.00018921,2]
[408140496,1773168639206,-500.0,0.00018921,2]
[408140498,1773168639215,-500.0,0.00018921,2]
[408140500,1773168639225,-291.03249604,0.00018921,2]
[408140502,1773168639237,-1288.40838767,0.00018921,5]
[408140504,1773168639247,-236.00331053,0.00018921,2]
[408140506,1773168639256,-291.31904709,0.00018921,2]
[408140508,1773168639267,-480.27227004,0.00018921,2]
[408140510,1773168639276,-500.0,0.00018921,2]
[408140512,1773168639286,-500.0,0.00018921,2]
[408140514,1773168639295,-500.0,0.00018921,2]
[408140516,1773168639306,-461.96657543,0.00018921,2]
[408140518,1773168639315,-2500000.0,0.00018922,2]
[408140520,1773168639324,-2850.59,0.00018922,2]
[408140522,1773168639333,-2850.59,0.00018922,2]
[408140524,1773168639343,-3820.45,0.00018922,2]
[408140526,1773168639352,-5051.15308938,0.00018941,2]
[408140528,1773168639361,-4117.32472027,0.00018942,2]
[408140530,1773168639370,-500.0,0.00018973,2]
[408140532,1773168639380,-500.37983606,0.00018973,2]
[408140534,1773168639395,-500.0,0.00018973,2]
[408140536,1773168639404,-500.0,0.00018973,2]
[408140538,1773168639413,-500.0,0.00018973,2]
[408140540,1773168639422,-500.0,0.00018973,2]
[408140542,1773168639432,-500.0,0.00018973,2]
[408140544,1773168639442,-500.0,0.00018973,2]
[408140546,1773168639451,-500.0,0.00018973,2]
[408140548,1773168639460,-500.0,0.00018973,2]
[408140550,1773168639470,-456.67098084,0.00018973,2]
[408140552,1773168639479,-424.139,0.00018973,2]
[408140554,1773168639489,-187.88530125,0.00018973,2]
[408140556,1773168639499,-1328.27659266,0.00018973,2]
[408140558,1773168639508,-250.0,0.00018973,2]
[408140560,1773168639517,-670.58624095,0.00018973,2]
[408140562,1773168639526,-500.0,0.00018973,2]
[408140564,1773168639536,-1500.0,0.00018973,2]
[408140566,1773168639546,-1500.0,0.00018973,2]
[408140569,1773168639555,-1500.0,0.00018973,2]
[408140571,1773168639564,-1500.0,0.00018973,2]
[408140574,1773168639574,-1500.0,0.00018973,2]
[408140577,1773168639584,-500.0,0.00018973,2]
[408140579,1773168639594,-1500.0,0.00018973,2]
[408140581,1773168639603,-626.54460475,0.00018973,2]
[408140583,1773168639612,-1500.0,0.00018973,2]
[408140585,1773168639622,-1500.0,0.00018973,2]
[408140587,1773168639631,-1500.0,0.00018973,2]
[408140589,1773168639641,-1500.0,0.00018973,2]
[408140591,1773168639650,-3000.0,0.00018973,2]
[408140593,1773168639660,-3000.0,0.00018973,2]
[408140595,1773168639669,-1500.0,0.00018973,2]
[408140597,1773168639678,-3000.0,0.00018973,2]
[408140599,1773168639687,-1500.0,0.00018973,2]
[408140601,1773168639698,-3000.0,0.00018973,2]
[408140603,1773168639707,-1500.0,0.00018973,2]
[408140605,1773168639716,-1500.0,0.00018973,2]
[408140607,1773168639725,-3000.0,0.00018973,2]
[408140609,1773168639734,-3000.0,0.00018973,2]
[408140611,1773168639743,-3000.0,0.00018973,2]
[408140613,1773168639752,-250.0,0.00018973,2]
[408140615,1773168639761,-3000.0,0.00018973,2]
[408140617,1773168639771,-3000.0,0.00018973,2]
[408140619,1773168639780,-1506.77280813,0.00018973,2]
[408140621,1773168639789,-3000.0,0.00018973,2]
[408140623,1773168639798,-151.0,0.00018973,2]
[408140625,1773168639807,-3000.0,0.00018973,2]
[408140627,1773168639817,-3000.0,0.00018973,2]
[408140629,1773168639827,-3000.0,0.00018973,2]
[408140631,1773168639836,-500.0,0.00018973,2]
[408140633,1773168639847,-174.61919141,0.00018973,2]
[408140635,1773168639856,-1000.0,0.00018973,2]
[408140637,1773168639865,-200.0,0.00018973,2]
[408140639,1773168639874,-644.79446245,0.00018973,2]
[408140641,1773168639885,-194.72792766,0.00018973,2]
[408140643,1773168639894,-1500.0,0.00018973,2]
[408140645,1773168639903,-1500.0,0.00018973,2]
[408140647,1773168639912,-1500.0,0.00018973,2]
[408140649,1773168639922,-1500.0,0.00018973,2]
[408140651,1773168639932,-1000.0,0.00018973,2]
[408140653,1773168639941,-262.90206542,0.00018973,2]
[408140655,1773168639950,-990.02,0.00018991,2]
[408140657,1773168639959,-781.59,0.00018992,2]
[408140659,1773168639968,-13667.64153885,0.00019,2]
[408140660,1773168639978,-202.15363139,0.00019,2]
[408140662,1773168639989,-688.97898661,0.00019,2]
[408140665,1773168640000,-1042.0,0.00019021,2]
[408140667,1773168640009,-619.0,0.00019021,2]
[408140668,1773168640018,-414.0,0.00019021,2]
[408140670,1773168640028,-3750.0,0.00019021,2]
[408140673,1773168640037,-500.0,0.00019028,2]
[408140674,1773168640046,-151.0,0.00019028,2]
[408140677,1773168640056,-3441.42,0.00019037,2]
[408140678,1773168640065,-368.85300107,0.00019038,2]
[408140680,1773168640074,-16529.39602955,0.00019047,2]
[408140682,1773168640083,-4117.32472027,0.00019062,2]
[408140685,1773168640093,-500.0,0.00019083,2]
[408140687,1773168640104,-151.0,0.00019083,2]
[408140689,1773168640113,-5051.15308938,0.00019133,2]
[408140691,1773168640123,-500.0,0.00019138,2]
[408140692,1773168640132,-151.0,0.00019138,2]
[408140694,1773168640142,-1043.67,0.00019178,2]
[408140697,1773168640152,-3000.0,0.00019178,2]
[408140698,1773168640161,-3000.0,0.00019178,2]
[408140700,1773168640171,-3000.0,0.00019178,2]
[408140702,1773168640180,-3000.0,0.00019178,2]
[408140705,1773168640190,-3000.0,0.00019178,2]
[408140707,1773168640199,-3000.0,0.00019178,2]
[408140709,1773168640208,-3000.0,0.00019178,2]
[408140711,1773168640219,-3027.62924179,0.00019178,2]
[408140712,1773168640232,-787.0,0.00019178,2]
[408140715,1773168640242,-268.96748512,0.00019178,2]
[408140717,1773168640251,-4117.32472027,0.00019181,2]
[408140718,1773168640260,-500.0,0.00019193,2]
[408140720,1773168640269,-151.0,0.00019193,2]
[408140722,1773168640278,-2000.0,0.000192,2]
[408140724,1773168640288,-500.0,0.00019233,7]
[408140726,1773168640297,-500.0,0.00019248,2]
[408140728,1773168640306,-151.0,0.00019248,2]
[408140730,1773168640315,-368.85300107,0.00019253,2]
[408140732,1773168640324,-781.59,0.00019266,2]
[408140734,1773168640333,-2288.15,0.00019271,2]
[408140736,1773168640343,-1000.0,0.00019274,2]
[408140738,1773168640351,-4117.32472027,0.00019301,2]
[408140740,1773168640360,-500.0,0.00019303,2]
[408140742,1773168640369,-152.13617837,0.00019303,2]
[408140744,1773168640378,-5051.15308938,0.00019325,2]
[408140746,1773168640389,-16529.39602955,0.00019332,2]
[408140748,1773168640398,-500.0,0.00019358,2]
[408140750,1773168640407,-244.9441592,0.00019361,2]
[408140752,1773168640416,-161.2390476,0.00019361,2]
[408140755,1773168640426,-3957.85580897,0.00019361,2]
[408140758,1773168640435,-5000.0,0.000194,7]
[408140761,1773168640444,-500.0,0.00019413,2]
[408140764,1773168640453,-4117.32472027,0.00019421,2]
[408140767,1773168640462,-154.576201,0.00019459,7]
[408140770,1773168640471,-500.0,0.00019468,2]
[408140772,1773168640480,-368.85300107,0.00019469,2]
[408140773,1773168640489,-177.88,0.00019487,2]
[408140774,1773168640499,-350.0,0.00019491,2]
[408140775,1773168640509,-1000.0,0.000195,7]
[408140776,1773168640518,-316.93,0.00019504,2]
[408140777,1773168640527,-500.0,0.00019507,7]
[408140778,1773168640535,-168.0,0.00019508,2]
[408140779,1773168640544,-5051.15308938,0.00019517,2]
[408140780,1773168640552,-1000.0,0.00019521,2]
[408140781,1773168640561,-945.92650306,0.00019521,2]
[408140782,1773168640570,-1000.0,0.00019521,2]
[408140783,1773168640579,-1000.0,0.00019521,2]
[408140784,1773168640588,-1000.0,0.00019521,2]
[408140785,1773168640598,-500.0,0.00019521,2]
[408140786,1773168640607,-1000.0,0.00019521,2]
[408140787,1773168640616,-1000.0,0.00019521,2]
[408140788,1773168640625,-269.49635784,0.00019521,2]
[408140789,1773168640634,-300.0,0.00019521,2]
[408140790,1773168640644,-243.08739965,0.00019521,2]
[408140791,1773168640653,-500.0,0.00019523,2]
[408140792,1773168640663,-227.7,0.0001954,2]
[408140793,1773168640672,-4117.32472027,0.00019541,2]
[408140794,1773168640681,-1000.0,0.00019548,2]
[408140795,1773168640691,-177.86,0.00019556,2]
[408140796,1773168640700,-500.0,0.00019578,2]
[408140797,1773168640710,-290.37,0.000196,2]
[408140798,1773168640719,-1036.70199267,0.000196,2]
[408140799,1773168640728,-1051.82083547,0.000196,2]
[408140800,1773168640737,-1087.28841536,0.000196,2]
[408140801,1773168640746,-1853.54481487,0.000196,2]
[408140802,1773168640755,-292.21,0.000196,30]
[408140803,1773168640764,-1428.35284987,0.000196,2]
[408140805,1773168640774,-1000.0,0.000196,7]
[408140807,1773168640783,-250.0,0.00019613,2]
[408140808,1773168640792,-16529.39602955,0.00019616,2]
[408140810,1773168640802,-500.0,0.00019633,2]
[408140813,1773168640811,-4117.32472027,0.0001966,2]
[408140814,1773168640821,-250.0,0.00019668,2]
[408140816,1773168640830,-368.85300107,0.00019684,2]
[408140819,1773168640839,-1000.0,0.00019696,2]
[408140820,1773168640848,-1000.0,0.000197,7]
[408140822,1773168640858,-5051.15308938,0.00019708,2]
[408140824,1773168640867,-250.0,0.00019711,2]
[408140826,1773168640878,-3435.719,0.00019711,2]
[408140829,1773168640890,-168.047,0.00019711,2]
[408140831,1773168640899,-500.0,0.00019714,2]
[408140832,1773168640909,-500.0,0.00019714,2]
[408140835,1773168640918,-500.0,0.00019714,2]
[408140836,1773168640927,-150.81923528,0.00019714,2]
[408140839,1773168640936,-500.0,0.00019714,2]
[408140841,1773168640946,-500.0,0.00019714,2]
[408140843,1773168640958,-1000.0,0.00019724,2]
[408140845,1773168640967,-551.92,0.00019725,2]
[408140847,1773168640977,-250.0,0.00019726,2]
[408140849,1773168640986,-3443.267284,0.00019726,2]
[408140851,1773168640996,-3443.267284,0.00019726,2]
[408140853,1773168641005,-3443.267284,0.00019726,2]
[408140855,1773168641015,-174.359556,0.00019726,2]
[408140857,1773168641025,-174.359556,0.00019726,2]
[408140859,1773168641034,-1721.633642,0.00019726,2]
[408140861,1773168641043,-1721.633642,0.00019726,2]
[408140863,1773168641052,-1721.633642,0.00019726,2]
[408140865,1773168641061,-500.0,0.00019726,2]
[408140867,1773168641071,-439.8301473,0.00019726,2]
[408140869,1773168641080,-1766.57,0.00019726,2]
[408140871,1773168641089,-1766.57,0.00019726,2]
[408140873,1773168641099,-1766.57,0.00019726,2]
[408140875,1773168641108,-1766.57,0.00019726,2]
[408140877,1773168641117,-1766.57,0.00019726,2]
[408140879,1773168641127,-1766.57,0.00019726,2]
[408140881,1773168641136,-1766.57,0.00019726,2]
[408140884,1773168641150,-1766.57,0.00019726,2]
[408140886,1773168641160,-1766.57,0.00019726,2]
[408140888,1773168641169,-1766.57,0.00019726,2]
[408140890,1773168641179,-1766.57,0.00019726,2]
[408140892,1773168641192,-1766.57,0.00019726,2]
[408140894,1773168641201,-1766.57,0.00019726,2]
[408140896,1773168641211,-1766.57,0.00019726,2]
[408140898,1773168641221,-1766.57,0.00019726,2]
[408140900,1773168641235,-1766.57,0.00019726,2]
[408140902,1773168641245,-1766.57,0.00019726,2]
[408140935,1773168641519,-1766.57,0.00019726,2]
[408140938,1773168641559,-1766.57,0.00019726,2]
[408140940,1773168641569,-1766.57,0.00019726,2]
[408140942,1773168641578,-1766.57,0.00019726,2]
[408140944,1773168641587,-1766.57,0.00019726,2]
[408140946,1773168641596,-1766.57,0.00019726,2]
[408140948,1773168641605,-1766.78298099,0.00019726,2]
[408140950,1773168641615,-500.0,0.00019726,2]
[408140952,1773168641624,-500.5,0.00019726,2]
[408140954,1773168641633,-1162.45,0.00019726,2]
[408140956,1773168641645,-1162.45,0.00019726,2]
[408140958,1773168641655,-1162.45,0.00019726,2]
[408140960,1773168641665,-1162.45,0.00019726,2]
[408140962,1773168641674,-1162.45,0.00019726,2]
[408140964,1773168641683,-1162.45,0.00019726,2]
[408140966,1773168641692,-1162.45,0.00019726,2]
[408140968,1773168641702,-1162.45,0.00019726,2]
[408140970,1773168641711,-1162.45,0.00019726,2]
[408140972,1773168641721,-1162.45,0.00019726,2]
[408140975,1773168641730,-1162.45,0.00019726,2]
[408140977,1773168641740,-1162.45,0.00019726,2]
[408140979,1773168641749,-1162.45,0.00019726,2]
[408140981,1773168641759,-1162.45,0.00019726,2]
[408140983,1773168641767,-1162.45,0.00019726,2]
[408140985,1773168641777,-1162.45,0.00019726,2]
[408140986,1773168641786,-1162.45,0.00019726,2]
[408140988,1773168641795,-1162.45,0.00019726,2]
[408140990,1773168641804,-1162.45,0.00019726,2]
[408140992,1773168641814,-1162.45,0.00019726,2]
[408140995,1773168641824,-1162.45,0.00019726,2]
[408140997,1773168641833,-1162.45,0.00019726,2]
[408141000,1773168641851,-1162.45,0.00019726,2]
[408141002,1773168641863,-1162.6489105,0.00019726,2]
[408141004,1773168641873,-1250.51,0.00019726,2]
[408141006,1773168641883,-1250.51,0.00019726,2]
[408141008,1773168641895,-1250.51,0.00019726,2]
[408141010,1773168641905,-1250.51,0.00019726,2]
[408141012,1773168641915,-1250.51,0.00019726,2]
[408141014,1773168641925,-1250.51,0.00019726,2]
[408141016,1773168641934,-1250.51,0.00019726,2]
[408141018,1773168641945,-1250.51,0.00019726,2]
[408141020,1773168641955,-1250.51,0.00019726,2]
[408141023,1773168641966,-1250.51,0.00019726,2]
[408141024,1773168641976,-1250.51,0.00019726,2]
[408141026,1773168641986,-1250.51,0.00019726,2]
[408141028,1773168641996,-1250.51,0.00019726,2]
[408141030,1773168642006,-1250.51,0.00019726,2]
[408141033,1773168642016,-1250.51,0.00019726,2]
[408141035,1773168642026,-1250.51,0.00019726,2]
[408141037,1773168642037,-1250.51,0.00019726,2]
[408141039,1773168642047,-1250.51,0.00019726,2]
[408141041,1773168642057,-1250.51,0.00019726,2]
[408141043,1773168642066,-1250.51,0.00019726,2]
[408141045,1773168642076,-1250.51,0.00019726,2]
[408141047,1773168642088,-1250.51,0.00019726,2]
[408141049,1773168642097,-1250.51,0.00019726,2]
[408141051,1773168642106,-1250.68103818,0.00019726,2]
[408141053,1773168642116,-401.29,0.00019726,2]
[408141055,1773168642126,-500.0,0.00019726,2]
[408141057,1773168642136,-500.0,0.00019726,2]
[408141059,1773168642146,-524.54846384,0.00019726,2]
[408141061,1773168642156,-500.0,0.00019726,2]
[408141063,1773168642166,-500.0,0.00019726,2]
[408141065,1773168642176,-500.0,0.00019726,2]
[408141067,1773168642185,-243.10314305,0.00019726,2]
[408141069,1773168642194,-300.0,0.00019726,2]
[408141071,1773168642204,-787.0,0.00019726,2]
[408141074,1773168642218,-2288.15,0.0001973,2]
[408141076,1773168642229,-250.0,0.00019757,2]
[408141078,1773168642240,-500.0,0.00019769,2]
[408141080,1773168642251,-500.0,0.00019769,2]
[408141082,1773168642260,-500.0,0.00019769,2]
[408141084,1773168642270,-505.89870401,0.00019769,2]
[408141086,1773168642281,-500.0,0.00019769,2]
[408141088,1773168642291,-500.0,0.00019773,2]
[408141090,1773168642301,-338.5975808,0.00019773,2]
[408141092,1773168642312,-500.0,0.00019773,2]
[408141094,1773168642322,-621.69234867,0.00019773,2]
[408141096,1773168642333,-500.19685753,0.00019773,2]
[408141098,1773168642344,-4117.32472027,0.0001978,2]
[408141101,1773168642354,-500.0,0.00019781,7]
[408141104,1773168642365,-250.0,0.00019781,2]
[408141106,1773168642375,-10000.0,0.00019788,2]
[408141108,1773168642386,-478.92,0.000198,7]
[408141111,1773168642400,-1145.70782,0.000198,2]
[408141113,1773168642409,-1145.70782,0.000198,2]
[408141115,1773168642420,-1000.0,0.000198,7]
[408141117,1773168642430,-250.0,0.00019809,2]
[408141120,1773168642441,-1000.0,0.00019818,2]
[408141123,1773168642451,-250.0,0.00019822,2]
[408141126,1773168642460,-1000.0,0.00019822,2]
[408141129,1773168642471,-500.0,0.00019824,2]
[408141132,1773168642481,-500.0,0.00019824,2]
[408141135,1773168642491,-500.0,0.00019824,2]
[408141138,1773168642503,-500.0,0.00019824,2]
[408141141,1773168642514,-250.0,0.0001985,2]
[408141144,1773168642525,-990.02,0.00019854,2]
[408141146,1773168642535,-153.36839608,0.00019866,2]
[408141148,1773168642544,-500.0,0.00019873,2]
[408141150,1773168642554,-161.50637135,0.00019873,2]
[408141152,1773168642563,-500.0,0.00019873,2]
[408141154,1773168642573,-500.0,0.00019873,2]
[408141156,1773168642583,-500.0,0.00019873,2]
[408141158,1773168642592,-210.19245283,0.00019873,2]
[408141160,1773168642603,-500.0,0.00019873,2]
[408141162,1773168642613,-500.0,0.00019873,2]
[408141164,1773168642624,-500.0,0.00019873,2]
[408141166,1773168642634,-500.0,0.00019873,2]
[408141168,1773168642645,-161.52562053,0.00019873,2]
[408141170,1773168642656,-500.0,0.00019873,2]
[408141172,1773168642666,-500.0,0.00019873,2]
[408141174,1773168642676,-500.0,0.00019873,2]
[408141176,1773168642687,-500.30661953,0.00019873,2]
[408141178,1773168642697,-162.48933507,0.00019873,2]
[408141180,1773168642707,-500.0,0.00019873,2]
[408141182,1773168642717,-309.41665429,0.00019873,2]
[408141184,1773168642726,-150.0,0.00019873,2]
[408141187,1773168642737,-500.0,0.00019873,2]
[408141189,1773168642747,-500.0,0.00019873,2]
[408141191,1773168642756,-525.62729725,0.00019873,2]
[408141193,1773168642766,-500.0,0.00019873,2]
[408141195,1773168642777,-336.48617471,0.00019873,2]
[408141197,1773168642788,-500.0,0.00019873,2]
[408141199,1773168642797,-500.0,0.00019873,2]
[408141201,1773168642807,-500.0,0.00019873,2]
[408141203,1773168642817,-500.24925891,0.00019873,2]
[408141205,1773168642827,-500.0,0.00019873,2]
[408141207,1773168642837,-500.0,0.00019873,2]
[408141209,1773168642847,-500.0,0.00019873,2]
[408141211,1773168642857,-500.0,0.00019873,2]
[408141213,1773168642867,-500.0,0.00019873,2]
[408141215,1773168642877,-500.0,0.00019873,2]
[408141217,1773168642887,-500.0,0.00019873,2]
[408141219,1773168642898,-500.0,0.00019873,2]
[408141221,1773168642908,-311.58893439,0.00019873,2]
[408141223,1773168642918,-500.0,0.00019873,2]
[408141226,1773168642928,-500.0,0.00019873,2]
[408141227,1773168642938,-166.21138236,0.00019873,2]
[408141230,1773168642948,-162.45092924,0.00019873,2]
[408141232,1773168642958,-516.85988717,0.00019873,2]
[408141234,1773168642967,-500.17118036,0.00019873,2]
[408141236,1773168642977,-500.0,0.00019873,2]
[408141238,1773168642986,-500.0,0.00019873,2]
[408141240,1773168642996,-162.16516283,0.00019873,2]
[408141242,1773168643007,-150.0,0.00019873,2]
[408141244,1773168643017,-164.4040302,0.00019873,2]
[408141246,1773168643027,-500.0,0.00019873,2]
[408141248,1773168643037,-500.0,0.00019873,2]
[408141250,1773168643047,-500.0,0.00019873,2]
[408141252,1773168643057,-500.0,0.00019873,2]
[408141254,1773168643068,-500.0,0.00019873,2]
[408141256,1773168643079,-500.0,0.00019873,2]
[408141258,1773168643089,-500.0,0.00019873,2]
[408141260,1773168643099,-164.68602851,0.00019873,2]
[408141262,1773168643109,-158.89335882,0.00019873,2]
[408141264,1773168643118,-438.17886325,0.00019873,2]
[408141266,1773168643128,-500.0,0.00019873,2]
[408141268,1773168643139,-564.98385943,0.00019873,2]
[408141270,1773168643149,-500.0,0.00019873,2]
[408141272,1773168643159,-500.0,0.00019873,2]
[408141274,1773168643169,-500.0,0.00019873,2]
[408141276,1773168643178,-500.0,0.00019873,2]
[408141278,1773168643188,-500.0,0.00019873,2]
[408141280,1773168643198,-555.93722716,0.00019873,2]
[408141282,1773168643208,-500.0,0.00019873,2]
[408141284,1773168643218,-168.09945814,0.00019873,2]
[408141286,1773168643231,-500.0,0.00019873,2]
[408141288,1773168643241,-500.19933179,0.00019873,2]
[408141290,1773168643250,-399.24757169,0.00019878,2]
[408141292,1773168643260,-500.0,0.00019878,2]
[408141294,1773168643271,-544.737577,0.00019878,2]
[408141296,1773168643281,-631.75115983,0.00019878,2]
[408141298,1773168643290,-644612.667,0.00019888,2]
[408141300,1773168643303,-201.1284132,0.000199,2]
[408141302,1773168643312,-930.3724,0.000199,2]
[408141304,1773168643322,-500.0,0.000199,2]
[408141306,1773168643331,-500.0,0.000199,2]
[408141308,1773168643341,-500.0,0.000199,2]
[408141310,1773168643350,-333.18627222,0.000199,2]
[408141312,1773168643360,-250.0,0.000199,2]
[408141314,1773168643369,-2873.19905948,0.000199,2]
[408141316,1773168643380,-9898.56304388,0.000199,3]